[Event "Niedersachsen-ch B 2024"]
[Site "Verden Aller"]
[Date "2024.01.05"]
[Round "3.12"]
[White "Kraeuter, Paavo Alexander"]
[Black "Bartel, Reinhard"]
[Result "1-0"]
[ECO "D38"]
[WhiteElo "1832"]
[BlackElo "1525"]
[Annotator "NA RC"]
[PlyCount "131"]
[EventDate "2024.01.01"]
[EventType "swiss"]
[EventCountry "GER"]
[SourceTitle "playchess.com"]
[Source "ChessBase"]
[SourceQuality "1"]
[TimeControl "40/5400+30:1800+30"]

1. d4 {[%emt 0:00:03]} Nf6 {[%emt 0:00:10]} 2. c4 {[%emt 0:00:05]} e6 {[%emt 0:00:10]} 3. Nf3 {[%emt 0:00:05]} d5 {[%emt 0:00:24]} 4. Nc3 {[%emt 0:00:05]} Bb4 {[%emt 0:03:57]} 5. Bg5 {[%emt 0:00:17]} h6 {[%emt 0:02:13]} 6. Qa4+ {[%emt 0:00:02]} Nc6 {[%emt 0:00:12]} 7. Bxf6 {[%emt 0:00:32]} Bxc3+ {[%emt 0:08:05]} 8. bxc3 {[%emt 0:00:13]} gxf6 {[%emt 0:03:32]} 9. e3 {[%emt 0:01:43]} Bd7 {[%emt 0:04:37]} 10. Qc2 {[%emt 0:02:47]} dxc4 {[%emt 0:04:14]} 11. Bxc4 {[%emt 0:00:16]} Na5 {[%emt 0:04:32]} 12. Be2 {[%emt 0:07:32]} Bc6 {[%emt 0:07:28]} 13. O-O {[%emt 0:02:03]} f5 {[%emt 0:03:17]} 14. c4 {[%emt 0:11:14]} Be4 {[%emt 0:11:00]} 15. Qc3 {[%emt 0:03:28]} c6 {[%emt 0:02:48]} 16. d5 {[%emt 0:03:04]} Rg8 {[%emt 0:04:14]} 17. d6 {[%emt 0:00:53]} b6 {[%emt 0:11:26]} 18. Rfd1 {[%emt 0:04:28]} Rb8 {[%emt 0:15:32]} 19. Ne1 {[%emt 0:15:07]} c5 {[%emt 0:02:55]} 20. Bf3 {[%emt 0:02:51]} Bxf3 {[%emt 0:02:16]} 21. Nxf3 {[%emt 0:00:10]} f6 {[%emt 0:00:43]} 22. Rd2 {[%emt 0:05:03]} Rg4 {[%emt 0:01:20]} 23. Ne5 {[%emt 0:05:44]} fxe5 {[%emt 0:02:36]} 24. Qxe5 {[%emt 0:00:09]} Kd7 {[%emt 0:00:58]} 25. Qb2 {[%emt 0:03:30]} a6 {[%emt 0:02:07]} 26. Rd3 {[%emt 0:05:17]} Nxc4 {[%emt 0:01:03]} 27. Qe2 {[%emt 0:00:56]} b5 {[%emt 0:01:01]} 28. h3 {[%emt 0:00:31]} Rg6 {[%emt 0:00:41]} 29. a4 {[%emt 0:01:17]} Qh8 {[%emt 0:00:46]} 30. Ra2 {[%emt 0:00:55]} Qg7 {[%emt 0:00:35]} 31. f4 {[%emt 0:00:14]} bxa4 {[%emt 0:00:30]} 32. Qc2 {[%emt 0:01:35]} Rb4 {[%emt 0:00:33]} 33. Rc3 {[%emt 0:00:42]} Nb6 {[%emt 0:00:32]} 34. Rxc5 {[%emt 0:00:32]} Nd5 {[%emt 0:00:31]} 35. Rc7+ {[%emt 0:09:42]} Nxc7 {[%emt 0:00:10]} 36. Qxc7+ {[%emt 0:00:22]} Ke8 {[%emt 0:00:16]} 37. Qc8+ {[%emt 0:00:09]} Kf7 {[%emt 0:00:24]} 38. d7 {[%emt 0:00:39]} Rb1+ {[%emt 0:00:37]} 39. Kh2 {[%emt 0:00:11]} Rd1 {[%emt 0:00:59]} 40. Qe8+ {[%emt 0:01:33]} Kf6 {[%emt 0:00:18]} 41. d8=Q+ {[%emt 0:30:50]} Rxd8 {[%emt 0:30:27]} 42. Qxd8+ {[%emt 0:00:08]} Qe7 {[%emt 0:00:00]} 43. Qd4+ {[%emt 0:00:00]} e5 {[%emt 0:00:00]} 44. Qxa4 {[%emt 0:00:00]} exf4 {[%emt 0:00:00]} 45. exf4 {[%emt 0:00:00]} Kf7 {[%emt 0:00:00]} 46. Qc4+ {[%emt 0:00:00]} Qe6 {[%emt 0:00:00]} 47. Qc7+ {[%emt 0:00:00]} Qe7 {[%emt 0:00:00]} 48. Qa5 {[%emt 0:00:00]} Qd6 {[%emt 0:00:00]} 49. Qxf5+ {[%emt 0:00:00]} Rf6 {[%emt 0:00:00]} 50. Qh7+ {[%emt 0:00:00]} Kf8 {[%emt 0:00:00]} 51. g3 {[%emt 0:00:00]} Qb6 {[%emt 0:00:00]} 52. Re2 {[%emt 0:00:00]} Re6 {[%emt 0:00:09]} 53. Qf5+ {[%emt 0:00:00]} Ke7 {[%emt 0:01:35]} 54. Rd2 {[%emt 0:00:00]} Rd6 {[%emt 0:02:54]} 55. Qe5+ {[%emt 0:00:00]} Re6 {[%emt 0:01:14]} 56. Qg7+ {[%emt 0:00:00]} Ke8 {[%emt 0:00:29]} 57. Rc2 {[%emt 0:02:13]} Rc6 {[%emt 0:01:35]} 58. Qg8+ {[%emt 0:00:25]} Kd7 {[%emt 0:00:41]} 59. Qf7+ {[%emt 0:01:12]} Kc8 {[%emt 0:00:40]} 60. Qe8+ {[%emt 0:00:45]} Kb7 {[%emt 0:00:11]} 61. Rd2 {[%emt 0:00:48]} Rc7 {[%emt 0:00:44]} 62. Qe5 {[%emt 0:01:45]} Qc5 {[%emt 0:00:35]} 63. Qe4+ {[%emt 0:01:04]} Qc6 {[%emt 0:00:25]} 64. Rb2+ {[%emt 0:00:37]} Ka8 {[%emt 0:00:33]} 65. Qd4 {[%emt 0:00:57]} Rd7 {[%emt 0:00:30]} 66. Qh8+ {[%emt 0:16:47]} 1-0

[Event "Niedersachsen-ch B 2024"]
[Site "Verden Aller"]
[Date "2024.01.05"]
[Round "3.13"]
[White "Grunwald, Hannes Leon"]
[Black "Woellermann, Ludger"]
[Result "*"]
[ECO "B39"]
[WhiteElo "1517"]
[BlackElo "1829"]
[Annotator "NA RC"]
[PlyCount "41"]
[EventDate "2024.01.01"]
[EventType "swiss"]
[EventCountry "GER"]
[SourceTitle "playchess.com"]
[Source "ChessBase"]
[SourceQuality "1"]
[TimeControl "40/5400+30:1800+30"]

1. e4 {[%emt 0:00:05]} c5 {[%emt 0:00:16]} 2. Nf3 {[%emt 0:00:07]} Nc6 {[%emt 0:00:13]} 3. d4 {[%emt 0:00:08]} cxd4 {[%emt 0:00:19]} 4. Nxd4 {[%emt 0:00:10]} g6 {[%emt 0:00:23]} 5. c4 {[%emt 0:00:38]} Bg7 {[%emt 0:00:36]} 6. Be3 {[%emt 0:00:56]} Nf6 {[%emt 0:00:56]} 7. Nc3 {[%emt 0:00:49]} Ng4 {[%emt 1:31:17]} 8. Qxg4 {[%emt 0:03:04]} Nxd4 {[%emt 0:00:27]} 9. Qd1 {[%emt 0:01:54]} Ne6 {[%emt 0:00:44]} 10. Qd2 {[%emt 0:01:51]} Qa5 {[%emt 1:30:01]} 11. Rc1 {[%emt 0:01:25]} b6 {[%emt 0:00:00]} 12. Bd3 {[%emt 0:02:47]} h5 {[%emt 0:00:00]} 13. b3 {[%emt 0:09:37]} h4 {[%emt 0:01:30]} 14. Nd5 {[%emt 0:02:17]} Qxd2+ {[%emt 0:00:30]} 15. Kxd2 {[%emt 0:03:01]} Bb7 {[%emt 0:00:00]} 16. f4 {[%emt 0:03:51]} Rc8 {[%emt 0:00:00]} 17. e5 {[%emt 0:02:32]} Nc5 {[%emt 0:00:00]} 18. Be2 {[%emt 0:04:45]} e6 {[%emt 0:00:00]} 19. Nc3 {[%emt 0:03:59]} Bxg2 {[%emt 0:00:00]} 20. Nb5 {[%emt 0:02:30]} Ne4+ {[%emt 0:00:00]} 21. Kd3 {[%emt 0:54:34]} *

[Event "Niedersachsen-ch B 2024"]
[Site "Verden Aller"]
[Date "2024.01.05"]
[Round "3.14"]
[White "Bangert, Jonas"]
[Black "Krneta, Slavko"]
[Result "*"]
[ECO "E69"]
[WhiteElo "1527"]
[BlackElo "1767"]
[Annotator "NA RC"]
[PlyCount "44"]
[EventDate "2024.01.01"]
[EventType "swiss"]
[EventCountry "GER"]
[SourceTitle "playchess.com"]
[Source "ChessBase"]
[SourceQuality "1"]
[TimeControl "40/5400+30:1800+30"]

1. d4 {[%emt 0:00:03]} Nf6 {[%emt 0:00:46]} 2. Nf3 {[%emt 0:00:27]} g6 {[%emt 0:00:30]} 3. g3 {[%emt 0:01:13]} d6 {[%emt 0:01:39]} 4. Bg2 {[%emt 0:01:03]} c6 {[%emt 0:04:15]} 5. O-O {[%emt 0:05:17]} Bg7 {[%emt 0:00:07]} 6. c4 {[%emt 0:02:17]} O-O {[%emt 0:04:17]} 7. Nc3 {[%emt 0:03:40]} Qc7 {[%emt 0:01:46]} 8. h3 {[%emt 0:08:14]} Nbd7 {[%emt 0:02:34]} 9. e4 {[%emt 0:03:21]} e5 {[%emt 0:00:14]} 10. Be3 {[%emt 0:12:21]} Re8 {[%emt 0:00:58]} 11. d5 {[%emt 0:01:17]} c5 {[%emt 1:18:54]} 12. Ne1 {[%emt 0:06:27]} a6 {[%emt 0:08:55]} 13. b3 {[%emt 0:09:30]} Rb8 {[%emt 0:00:27]} 14. a4 {[%emt 0:00:39]} b6 {[%emt 0:01:26]} 15. Bf3 {[%emt 0:03:42]} Nf8 {[%emt 1:07:34]} 16. Bg4 {[%emt 0:10:26]} Nxg4 {[%emt 0:04:31]} 17. hxg4 {[%emt 0:00:04]} f5 {[%emt 0:00:38]} 18. gxf5 {[%emt 0:00:32]} gxf5 {[%emt 0:00:26]} 19. Qh5 {[%emt 0:03:32]} Qf7 {[%emt 0:01:34]} 20. Qxf7+ {[%emt 0:00:09]} Kxf7 {[%emt 0:00:16]} 21. Kg2 {[%emt 0:01:36]} f4 {[%emt 0:00:45]} 22. Bd2 {[%emt 0:00:23]} Ng6 {[%emt 0:00:35]} *

[Event "Niedersachsen-ch B 2024"]
[Site "Verden Aller"]
[Date "2024.01.05"]
[Round "3.15"]
[White "Leppert, Hans-Juergen"]
[Black "Golke, Philipp"]
[Result "1-0"]
[ECO "A39"]
[WhiteElo "1683"]
[BlackElo "1490"]
[Annotator "NA RC"]
[PlyCount "73"]
[EventDate "2024.01.01"]
[EventType "swiss"]
[EventCountry "GER"]
[SourceTitle "playchess.com"]
[Source "ChessBase"]
[SourceQuality "1"]
[TimeControl "40/5400+30:1800+30"]

1. c4 {[%emt 0:00:03]} c5 {[%emt 0:00:08]} 2. Nc3 {[%emt 0:00:25]} Nc6 {[%emt 0:00:05]} 3. Nf3 {[%emt 0:00:17]} Nf6 {[%emt 0:00:09]} 4. g3 {[%emt 0:00:22]} g6 {[%emt 0:00:08]} 5. Bg2 {[%emt 0:00:09]} Bg7 {[%emt 0:00:06]} 6. O-O {[%emt 0:00:10]} O-O {[%emt 0:00:04]} 7. d4 {[%emt 0:00:09]} cxd4 {[%emt 0:00:22]} 8. Nxd4 {[%emt 0:00:13]} Qb6 {[%emt 0:02:21]} 9. Nb3 {[%emt 0:04:52]} d6 {[%emt 0:02:40]} 10. Nd5 {[%emt 0:07:02]} Nxd5 {[%emt 0:02:59]} 11. cxd5 {[%emt 0:00:23]} Nd4 {[%emt 0:01:06]} 12. Be3 {[%emt 0:01:16]} Nxb3 {[%emt 0:06:24]} 13. Bxb6 {[%emt 0:00:12]} Nxa1 {[%emt 0:00:05]} 14. Bd4 {[%emt 0:00:40]} Bxd4 {[%emt 0:01:28]} 15. Qxd4 {[%emt 0:00:09]} Nc2 {[%emt 0:00:35]} 16. Qc3 {[%emt 0:00:30]} Bf5 {[%emt 0:00:41]} 17. e4 {[%emt 0:00:26]} Rfc8 {[%emt 0:01:02]} 18. Qd2 {[%emt 0:00:23]} Bd7 {[%emt 0:01:01]} 19. Rc1 {[%emt 0:01:33]} Nd4 {[%emt 0:00:20]} 20. Rxc8+ {[%emt 0:01:56]} Rxc8 {[%emt 0:00:06]} 21. h4 {[%emt 0:02:52]} Nb5 {[%emt 0:01:53]} 22. Kh2 {[%emt 0:00:55]} Kg7 {[%emt 0:01:20]} 23. Bh3 {[%emt 0:00:13]} Bxh3 {[%emt 0:00:33]} 24. Kxh3 {[%emt 0:00:10]} Rc5 {[%emt 0:01:59]} 25. Kg2 {[%emt 0:06:37]} b6 {[%emt 0:02:36]} 26. h5 {[%emt 0:04:06]} h6 {[%emt 0:02:49]} 27. hxg6 {[%emt 0:00:13]} fxg6 {[%emt 0:00:03]} 28. Qd3 {[%emt 0:02:51]} a5 {[%emt 0:04:00]} 29. Qb3 {[%emt 0:05:33]} Kf6 {[%emt 0:03:44]} 30. Qd3 {[%emt 0:06:19]} Nc7 {[%emt 0:00:36]} 31. Qd4+ {[%emt 0:01:08]} Kf7 {[%emt 0:00:25]} 32. Qh8 {[%emt 0:00:17]} h5 {[%emt 0:00:42]} 33. Qh7+ {[%emt 0:02:50]} Kf6 {[%emt 0:00:51]} 34. Qg8 {[%emt 0:00:40]} b5 {[%emt 0:01:53]} 35. Qf8+ {[%emt 0:00:20]} Ke5 {[%emt 0:00:32]} 36. Qxe7+ {[%emt 0:00:29]} Kd4 {[%emt 0:00:07]} 37. Qxd6 {[%emt 0:00:45]} 1-0

[Event "Niedersachsen-ch B 2024"]
[Site "Verden Aller"]
[Date "2024.01.05"]
[Round "3.16"]
[White "Freise, Linus"]
[Black "Juergenpott, Maximilian"]
[Result "*"]
[ECO "B13"]
[WhiteElo "1480"]
[BlackElo "1660"]
[Annotator "NA RC"]
[PlyCount "42"]
[EventDate "2024.01.01"]
[EventType "swiss"]
[EventCountry "GER"]
[SourceTitle "playchess.com"]
[Source "ChessBase"]
[SourceQuality "1"]
[TimeControl "40/5400+30:1800+30"]

1. e4 {[%emt 0:00:07]} c6 {[%emt 0:00:06]} 2. Nf3 {[%emt 0:00:13]} d5 {[%emt 0:00:07]} 3. exd5 {[%emt 0:00:10]} cxd5 {[%emt 0:00:07]} 4. d4 {[%emt 0:00:09]} Nc6 {[%emt 0:00:12]} 5. Bf4 {[%emt 0:00:52]} Bg4 {[%emt 0:01:59]} 6. c3 {[%emt 0:00:17]} e6 {[%emt 0:00:44]} 7. Nbd2 {[%emt 0:01:34]} Bd6 {[%emt 0:01:03]} 8. Bg3 {[%emt 0:02:27]} Bxg3 {[%emt 0:07:09]} 9. hxg3 {[%emt 0:01:36]} Nge7 {[%emt 0:01:46]} 10. Bd3 {[%emt 0:00:39]} Bf5 {[%emt 0:00:13]} 11. Nb3 {[%emt 0:01:09]} b6 {[%emt 0:05:19]} 12. Qd2 {[%emt 0:04:42]} a5 {[%emt 0:07:05]} 13. Nh4 {[%emt 0:17:28]} Bxd3 {[%emt 0:07:05]} 14. Qxd3 {[%emt 0:00:07]} h6 {[%emt 0:00:19]} 15. O-O-O {[%emt 0:00:41]} a4 {[%emt 0:00:20]} 16. Nd2 {[%emt 0:00:15]} O-O {[%emt 0:12:22]} 17. Rde1 {[%emt 0:01:26]} Rc8 {[%emt 0:00:57]} 18. Kb1 {[%emt 0:00:25]} e5 {[%emt 0:08:00]} 19. dxe5 {[%emt 1:05:43]} d4 {[%emt 0:00:28]} 20. c4 {[%emt 0:07:19]} Nb4 {[%emt 0:02:00]} 21. Qe4 {[%emt 0:00:00]} b5 {[%emt 0:02:56]} *

[Event "Niedersachsen-ch B 2024"]
[Site "Verden Aller"]
[Date "2024.01.05"]
[Round "3.17"]
[White "Laun, Kurt"]
[Black "Frese, Immo"]
[Result "*"]
[ECO "D37"]
[WhiteElo "1448"]
[BlackElo "1642"]
[Annotator "NA RC"]
[PlyCount "38"]
[EventDate "2024.01.01"]
[EventType "swiss"]
[EventCountry "GER"]
[SourceTitle "playchess.com"]
[Source "ChessBase"]
[SourceQuality "1"]
[TimeControl "40/5400+30:1800+30"]

1. c4 {[%emt 0:00:05]} Nf6 {[%emt 0:00:08]} 2. Nc3 {[%emt 0:00:13]} e6 {[%emt 0:00:12]} 3. d4 {[%emt 0:00:15]} d5 {[%emt 0:00:26]} 4. Nf3 {[%emt 0:01:07]} Be7 {[%emt 0:00:33]} 5. e3 {[%emt 0:00:46]} O-O {[%emt 0:00:21]} 6. Be2 {[%emt 0:00:49]} Nbd7 {[%emt 0:01:24]} 7. O-O {[%emt 0:00:34]} b6 {[%emt 0:03:12]} 8. cxd5 {[%emt 0:02:55]} exd5 {[%emt 0:02:56]} 9. Qc2 {[%emt 0:05:26]} Bb7 {[%emt 0:01:14]} 10. a3 {[%emt 0:04:22]} c5 {[%emt 0:02:34]} 11. Re1 {[%emt 0:03:21]} Rc8 {[%emt 0:03:11]} 12. Qa4 {[%emt 1:16:37]} a6 {[%emt 0:04:23]} 13. Qd1 {[%emt 0:02:57]} Re8 {[%emt 0:02:36]} 14. Bd2 {[%emt 0:03:02]} Bd6 {[%emt 0:06:22]} 15. h3 {[%emt 0:01:31]} Ne4 {[%emt 0:05:37]} 16. Bd3 {[%emt 0:04:23]} Ndf6 {[%emt 0:02:19]} 17. Rc1 {[%emt 0:09:22]} b5 {[%emt 0:16:08]} 18. dxc5 {[%emt 0:06:22]} Bxc5 {[%emt 0:07:10]} 19. b4 {[%emt 0:02:32]} Bb6 {[%emt 0:01:24]} *

[Event "Niedersachsen-ch B 2024"]
[Site "Verden Aller"]
[Date "2024.01.05"]
[Round "3.18"]
[White "Schiel, Lucas"]
[Black "Krueger, Moritz"]
[Result "*"]
[ECO "E30"]
[WhiteElo "1312"]
[BlackElo "1607"]
[Annotator "NA RC"]
[PlyCount "54"]
[EventDate "2024.01.01"]
[EventType "swiss"]
[EventCountry "GER"]
[SourceTitle "playchess.com"]
[Source "ChessBase"]
[SourceQuality "1"]
[TimeControl "40/5400+30:1800+30"]

1. d4 {[%emt 0:00:07]} Nf6 {[%emt 0:00:05]} 2. c4 {[%emt 0:00:09]} e6 {[%emt 0:00:06]} 3. Nc3 {[%emt 0:00:23]} Bb4 {[%emt 0:00:05]} 4. Bg5 {[%emt 0:03:38]} c5 {[%emt 0:00:11]} 5. d5 {[%emt 0:18:01]} h6 {[%emt 0:03:41]} 6. Bh4 {[%emt 0:12:10]} g5 {[%emt 0:01:41]} 7. Bg3 {[%emt 0:00:34]} Ne4 {[%emt 0:00:07]} 8. Qc2 {[%emt 0:00:14]} Qf6 {[%emt 0:00:12]} 9. Rc1 {[%emt 0:14:36]} Nxc3 {[%emt 0:03:01]} 10. bxc3 {[%emt 0:00:20]} Ba5 {[%emt 0:00:08]} 11. Nf3 {[%emt 0:00:23]} Qf5 {[%emt 0:01:10]} 12. e4 {[%emt 0:03:20]} Qg6 {[%emt 0:00:28]} 13. Bd3 {[%emt 0:00:43]} Bd8 {[%emt 0:01:06]} 14. O-O {[%emt 0:04:53]} h5 {[%emt 0:00:47]} 15. e5 {[%emt 0:10:49]} Qg7 {[%emt 0:00:14]} 16. h4 {[%emt 0:00:58]} gxh4 {[%emt 0:00:43]} 17. Nxh4 {[%emt 0:00:36]} Rg8 {[%emt 0:00:54]} 18. Be4 {[%emt 0:27:36]} Qg4 {[%emt 0:00:20]} 19. Bf3 {[%emt 0:00:00]} Qxc4 {[%emt 0:00:07]} 20. Qh7 {[%emt 0:00:00]} Kf8 {[%emt 0:03:03]} 21. Bxh5 {[%emt 0:00:00]} Rg7 {[%emt 0:00:22]} 22. Qh8+ {[%emt 0:00:00]} Rg8 {[%emt 0:00:23]} 23. Qh6+ {[%emt 0:00:00]} Rg7 {[%emt 0:01:32]} 24. Bf4 {[%emt 0:00:00]} Kg8 {[%emt 0:00:10]} 25. dxe6 {[%emt 0:00:00]} dxe6 {[%emt 0:00:11]} 26. Ng6 {[%emt 0:00:00]} fxg6 {[%emt 0:00:23]} 27. Rfd1 {[%emt 0:00:00]} Nc6 {[%emt 0:01:02]} *

[Event "Niedersachsen-ch B 2024"]
[Site "Verden Aller"]
[Date "2024.01.05"]
[Round "3.19"]
[White "Ristedt, Mathis"]
[Black "Nechitaylo, Lev"]
[Result "*"]
[ECO "D51"]
[WhiteElo "1601"]
[BlackElo "1456"]
[Annotator "NA RC"]
[PlyCount "31"]
[EventDate "2024.01.01"]
[EventType "swiss"]
[EventCountry "GER"]
[SourceTitle "playchess.com"]
[Source "ChessBase"]
[SourceQuality "1"]
[TimeControl "40/5400+30:1800+30"]

1. d4 {[%emt 0:00:03]} d5 {[%emt 0:00:04]} 2. c4 {[%emt 0:00:05]} e6 {[%emt 0:00:07]} 3. Nc3 {[%emt 0:00:19]} Nf6 {[%emt 0:00:03]} 4. Bg5 {[%emt 0:00:12]} Nbd7 {[%emt 0:00:04]} 5. e3 {[%emt 0:01:05]} b6 {[%emt 0:00:23]} 6. cxd5 {[%emt 0:02:46]} exd5 {[%emt 0:08:58]} 7. Nxd5 {[%emt 0:15:25]} Be7 {[%emt 0:03:20]} 8. Nxe7 {[%emt 0:05:17]} Qxe7 {[%emt 0:00:11]} 9. Nf3 {[%emt 0:04:05]} Bb7 {[%emt 0:01:16]} 10. a3 {[%emt 0:08:47]} O-O {[%emt 0:16:57]} 11. Be2 {[%emt 0:06:59]} h6 {[%emt 0:03:26]} 12. Bh4 {[%emt 0:06:31]} c5 {[%emt 0:11:24]} 13. O-O {[%emt 0:10:58]} cxd4 {[%emt 0:00:29]} 14. Bxf6 {[%emt 0:06:06]} Nxf6 {[%emt 0:00:44]} 15. Nxd4 {[%emt 0:00:53]} Rfd8 {[%emt 0:00:16]} 16. Bf3 {[%emt 0:01:01]} *

[Event "Niedersachsen-ch B 2024"]
[Site "Verden Aller"]
[Date "2024.01.05"]
[Round "3.20"]
[White "Ramme, Georg"]
[Black "Schoenfelder, Dennis Yoel"]
[Result "*"]
[ECO "D02"]
[WhiteElo "1579"]
[BlackElo "1370"]
[Annotator "NA RC"]
[PlyCount "48"]
[EventDate "2024.01.01"]
[EventType "swiss"]
[EventCountry "GER"]
[SourceTitle "playchess.com"]
[Source "ChessBase"]
[SourceQuality "1"]
[TimeControl "40/5400+30:1800+30"]

1. Nf3 {[%emt 0:00:06]} Nf6 {[%emt 0:00:01]} 2. d4 {[%emt 0:00:08]} d5 {[%emt 0:00:02]} 3. Bf4 {[%emt 0:00:08]} e6 {[%emt 0:00:31]} 4. Nbd2 {[%emt 0:00:22]} Bd6 {[%emt 0:00:24]} 5. Bxd6 {[%emt 0:00:24]} Qxd6 {[%emt 0:00:04]} 6. e3 {[%emt 0:00:40]} O-O {[%emt 0:00:12]} 7. c3 {[%emt 0:04:21]} c5 {[%emt 0:00:44]} 8. dxc5 {[%emt 0:07:51]} Qxc5 {[%emt 0:01:28]} 9. Nb3 {[%emt 0:00:41]} Qe7 {[%emt 0:04:17]} 10. Qd4 {[%emt 0:05:20]} Ne4 {[%emt 1:27:47]} 11. Qb4 {[%emt 0:03:44]} Qxb4 {[%emt 0:04:01]} 12. cxb4 {[%emt 0:00:04]} a6 {[%emt 0:05:12]} 13. Be2 {[%emt 0:05:56]} Nc6 {[%emt 0:02:17]} 14. a3 {[%emt 0:00:46]} f6 {[%emt 0:04:48]} 15. O-O {[%emt 0:01:35]} Bd7 {[%emt 0:02:08]} 16. Rac1 {[%emt 0:04:33]} Rac8 {[%emt 1:05:10]} 17. Rfd1 {[%emt 0:03:28]} Rfd8 {[%emt 0:11:34]} 18. Ne1 {[%emt 0:05:22]} Nd6 {[%emt 0:05:36]} 19. Nc5 {[%emt 0:04:59]} Ne4 {[%emt 0:04:17]} 20. Nxb7 {[%emt 0:02:21]} Rf8 {[%emt 0:00:16]} 21. f3 {[%emt 0:02:55]} Ng5 {[%emt 0:00:28]} 22. Nc5 {[%emt 0:00:41]} Rfd8 {[%emt 0:00:59]} 23. h4 {[%emt 0:01:52]} Nf7 {[%emt 0:00:18]} 24. Bxa6 {[%emt 0:02:00]} Rc7 {[%emt 0:00:29]} *

[Event "Niedersachsen-ch B 2024"]
[Site "Verden Aller"]
[Date "2024.01.05"]
[Round "3.21"]
[White "Frowein, Ernst Holger"]
[Black "Lieb, Max"]
[Result "1/2-1/2"]
[ECO "B33"]
[WhiteElo "1755"]
[BlackElo "1365"]
[Annotator "NA RC"]
[PlyCount "46"]
[EventDate "2024.01.01"]
[EventType "swiss"]
[EventCountry "GER"]
[SourceTitle "playchess.com"]
[Source "ChessBase"]
[SourceQuality "1"]
[TimeControl "40/5400+30:1800+30"]

1. e4 {[%emt 1:31:00]} c5 {[%emt 0:00:15]} 2. Nf3 {[%emt 0:00:00]} Nc6 {[%emt 0:00:07]} 3. d4 {[%emt 0:00:00]} cxd4 {[%emt 0:00:06]} 4. Nxd4 {[%emt 0:00:00]} Nf6 {[%emt 0:00:07]} 5. Nc3 {[%emt 0:00:00]} e5 {[%emt 0:00:06]} 6. Ndb5 {[%emt 0:00:00]} d6 {[%emt 0:00:09]} 7. Bg5 {[%emt 0:00:00]} a6 {[%emt 0:00:07]} 8. Na3 {[%emt 0:00:00]} b5 {[%emt 0:00:05]} 9. Nd5 {[%emt 0:00:00]} Be7 {[%emt 0:00:09]} 10. Bxf6 {[%emt 0:00:00]} Bxf6 {[%emt 0:00:08]} 11. c3 {[%emt 0:00:00]} Bg5 {[%emt 0:00:16]} 12. Be2 {[%emt 0:00:00]} O-O {[%emt 0:00:14]} 13. O-O {[%emt 0:00:00]} Be6 {[%emt 0:02:46]} 14. Nc2 {[%emt 0:00:00]} Bxd5 {[%emt 0:02:26]} 15. Qxd5 {[%emt 0:00:00]} Ne7 {[%emt 0:00:09]} 16. Qd3 {[%emt 0:00:00]} f5 {[%emt 0:10:21]} 17. exf5 {[%emt 0:00:00]} Nxf5 {[%emt 0:01:13]} 18. Bf3 {[%emt 0:00:00]} Ra7 {[%emt 0:07:13]} 19. Be4 {[%emt 0:00:00]} Qf6 {[%emt 0:01:50]} 20. a4 {[%emt 0:00:00]} bxa4 {[%emt 0:06:21]} 21. Rxa4 {[%emt 0:00:00]} a5 {[%emt 0:01:19]} 22. Nb4 {[%emt 0:00:00]} axb4 {[%emt 0:03:34]} 23. Rxa7 {[%emt 0:00:00]} Ne3 {[%emt 0:00:11]} 1/2-1/2